bitfinex-derivatives/quotes_BTCF0:USTF0_20250417
["timestamp","ask_amount","ask_price","bid_price","bid_amount"]
[1744908369076,0.14976391,84845.0,84844.0,0.1178845]
[1744908369277,0.14976391,84845.0,84844.0,0.4786845]
[1744908369685,0.00017685,84853.0,84844.0,0.4786845]
[1744908369686,0.00017685,84853.0,84852.0,0.1178734]
[1744908369882,0.11804885,84853.0,84852.0,0.4786734]
[1744908371690,0.00017685,84853.0,84852.0,0.4786734]
[1744908375695,0.2032512,84868.0,84867.0,0.1178526]
[1744908375895,0.2232512,84868.0,84867.0,0.1178526]
[1744908376197,0.1178595,84863.0,84862.0,0.1178582]
[1744908376383,0.058928,84865.0,84864.0,0.1178568]
[1744908376897,0.1178595,84863.0,84862.0,0.1178585]
[1744908377593,0.0814,84863.0,84862.0,0.1178585]
[1744908378399,0.0814,84863.0,84860.0,0.4786617]
[1744908378581,0.1178609,84861.0,84860.0,0.4786617]
[1744908378988,0.1178609,84861.0,84860.0,0.3608]
[1744908379189,0.1178609,84861.0,84860.0,0.4786623]
[1744908379494,0.1403294,84863.0,84862.0,0.1178595]
[1744908380182,0.1178609,84861.0,84860.0,0.5376718]
[1744908381984,0.2004609,84861.0,84860.0,0.5376718]
[1744908382992,0.0088471,84866.0,84865.0,0.1178554]
[1744908383290,0.1178512,84868.0,84867.0,0.1178526]
[1744908383489,0.1278512,84868.0,84867.0,0.4786526]
[1744908383689,0.13653381,84868.0,84867.0,0.4786526]
[1744908383886,0.09728,84884.0,84872.0,0.1178456]
[1744908384087,0.1178419,84875.0,84872.0,0.1178456]
[1744908384292,0.0589206,84876.0,84872.0,0.1967456]
[1744908384890,0.11802115,84873.0,84872.0,0.1967456]
[1744908385290,0.00017685,84873.0,84872.0,0.1967456]
[1744908385690,0.11802115,84873.0,84872.0,0.1967456]
[1744908387109,0.00017685,84873.0,84872.0,0.1967456]
[1744908387404,0.20889218,84888.0,84884.0,0.117829]
[1744908387702,0.1178269,84886.0,84884.0,0.478629]
[1744908387904,0.29712013,84885.0,84884.0,0.478629]
[1744908388201,0.17929253,84885.0,84884.0,0.478629]
[1744908388591,0.29712013,84885.0,84884.0,0.478629]
[1744908388999,0.17929253,84885.0,84884.0,0.478629]
[1744908389200,0.0779,84892.0,84889.0,0.0589103]
[1744908389400,0.05908565,84893.0,84892.0,0.1178179]
[1744908390606,0.00017675,84893.0,84892.0,0.1178179]
[1744908390804,0.00017675,84893.0,84892.0,0.2742179]
[1744908391110,0.11799325,84893.0,84892.0,0.2742179]
[1744908391300,0.00017675,84893.0,84892.0,0.2742179]
[1744908391497,0.0779,84900.0,84899.0,0.1178082]
[1744908392006,0.1957068,84900.0,84899.0,0.1178082]
[1744908392299,0.0779,84900.0,84899.0,0.1178082]
[1744908392491,0.0779,84900.0,84899.0,0.2742082]
[1744908395493,0.005,84904.0,84903.0,0.1178026]
[1744908395897,0.005,84904.0,84903.0,0.1977026]
[1744908396701,0.0893,84904.0,84903.0,0.2755026]
[1744908397198,0.2071012,84904.0,84903.0,0.2755026]
[1744908397710,0.2894012,84904.0,84903.0,0.2755026]
[1744908398104,0.1716,84904.0,84903.0,0.2755026]
[1744908398613,0.0893,84904.0,84903.0,0.2755026]
[1744908398909,0.005,84904.0,84903.0,0.2755026]
[1744908401115,0.0821,84917.0,84916.0,0.1177846]
[1744908401410,0.0821,84917.0,84916.0,0.4785846]
[1744908401814,0.1177783,84921.0,84920.0,0.2355539]
[1744908402109,0.1577783,84921.0,84920.0,0.2355539]
[1744908402809,0.3171783,84921.0,84920.0,0.2355539]
[1744908403519,0.1994,84921.0,84920.0,0.2355539]
[1744908403705,0.0783,84921.0,84920.0,0.2355539]
[1744908404421,0.07838,84921.0,84920.0,0.2355539]
[1744908404913,0.07838,84921.0,84920.0,0.1177776]
[1744908405213,0.1961576,84921.0,84920.0,0.0589688]
[1744908405513,0.1961576,84921.0,84920.0,8e-05]
[1744908405711,0.117786,84915.0,84914.0,0.1177863]
[1744908406115,0.1177887,84913.0,84912.0,0.00017664]
[1744908406311,0.5957487,84913.0,84912.0,0.00017664]
[1744908406703,0.6738487,84913.0,84912.0,0.00017664]
[1744908406907,0.6738487,84913.0,84912.0,0.00025664]
[1744908409814,0.6738487,84913.0,84912.0,1e-08]
[1744908409815,0.9238487,84913.0,84912.0,1e-08]
[1744908410120,0.1178234,84888.0,84887.0,0.4145]
[1744908410325,0.1178234,84888.0,84876.0,0.00019683]
[1744908410326,0.0589185,84879.0,84876.0,0.00019683]
[1744908410620,0.1767701,84873.0,84872.0,0.1178432]
[1744908410818,0.0689224,84873.0,84866.0,0.0589264]
[1744908411121,0.1178554,84866.0,84865.0,0.1178541]
[1744908411415,0.1178554,84865.0,84864.0,0.41467664]
[1744908411620,0.117854,84866.0,84865.0,8e-05]
[1744908411822,0.117854,84866.0,84865.0,0.1179354]
[1744908412121,0.275854,84866.0,84865.0,0.1179354]
[1744908412617,0.275854,84866.0,84865.0,8e-05]
[1744908413322,0.275854,84866.0,84865.0,0.1178554]
[1744908413520,0.275854,84866.0,84865.0,0.1179354]
[1744908414510,0.275854,84866.0,84865.0,8e-05]
[1744908415016,0.0816,84866.0,84865.0,0.1179354]
[1744908415214,0.0816,84866.0,84865.0,0.2764354]
[1744908415615,0.199454,84866.0,84865.0,0.2764354]
[1744908416016,0.0816,84866.0,84865.0,0.2764354]
[1744908416212,0.199454,84866.0,84865.0,0.2764354]
[1744908416611,0.0816,84866.0,84865.0,0.2764354]
[1744908416813,0.14913899,84869.0,84868.0,0.1178512]
[1744908420121,0.26698879,84869.0,84868.0,0.5323512]
[1744908420326,0.14913899,84869.0,84868.0,0.5323512]
[1744908421327,0.26698879,84869.0,84868.0,0.5323512]
[1744908421530,0.1178498,84869.0,84868.0,0.5323512]
[1744908422328,0.1178498,84869.0,84868.0,0.4145]
[1744908422523,0.1178498,84869.0,84868.0,0.5323512]
[1744908422826,0.1178498,84869.0,84868.0,0.5324312]
[1744908423012,0.1606,84869.0,84868.0,0.5324312]
[1744908423217,0.0839,84869.0,84868.0,0.5324312]
[1744908425123,0.11801054,84881.0,84880.0,0.1178345]
[1744908425423,0.09387664,84881.0,84880.0,0.1178345]
[1744908425623,0.12800984,84881.0,84880.0,0.1178345]
[1744908425815,0.09387664,84881.0,84880.0,0.1178345]
[1744908426323,0.09387664,84881.0,84880.0,0.1208345]
[1744908426525,0.17747664,84881.0,84880.0,0.2038345]
[1744908426824,0.09377664,84881.0,84880.0,0.2038345]
[1744908427025,0.00017664,84881.0,84880.0,0.5646345]
[1744908428019,0.3608,84894.0,84893.0,0.1178165]
[1744908428221,0.09708,84895.0,84894.0,0.1178151]
[1744908428532,0.14913899,84897.0,84896.0,0.1178123]
[1744908428727,0.26338,84902.0,84901.0,0.1178054]
[1744908429026,0.27338,84902.0,84901.0,0.1178054]
[1744908429328,0.27338,84902.0,84901.0,0.1208054]
[1744908429638,0.391184,84902.0,84901.0,0.1208054]
[1744908431227,0.1178151,84894.0,84893.0,0.00017674]
[1744908431617,0.1178151,84894.0,84893.0,0.11807324]
[1744908432227,0.1278151,84894.0,84893.0,0.00025674]
[1744908432726,0.1278151,84894.0,84893.0,0.11799324]
[1744908433319,0.1278151,84894.0,84893.0,0.00017674]
[1744908433521,0.1278151,84894.0,84893.0,0.11807324]
[1744908433827,0.1278151,84894.0,84893.0,0.00025674]
[1744908434628,0.1278151,84894.0,84872.0,0.3608]
[1744908434629,0.117855,84867.0,84866.0,0.0589268]
[1744908434826,0.0589255,84869.0,84868.0,0.1178512]
[1744908435636,0.0826,84870.0,84869.0,0.1178498]
[1744908435825,0.0826,84870.0,84869.0,0.4786498]
[1744908436020,0.00017674,84877.0,84876.0,0.1178401]
[1744908436234,0.12801544,84877.0,84876.0,0.1208401]
[1744908436430,0.21101544,84877.0,84876.0,0.1208401]
[1744908437226,0.21101544,84877.0,84876.0,0.1178401]
[1744908438529,0.09317674,84877.0,84876.0,0.1178401]
[1744908438729,0.08317674,84877.0,84876.0,0.1178401]
[1744908438930,0.11801544,84877.0,84876.0,0.1178401]
[1744908439937,0.00017674,84877.0,84876.0,0.1178401]
[1744908440135,0.11801544,84877.0,84876.0,0.1178401]
[1744908443825,0.20111544,84877.0,84876.0,0.2019401]
[1744908446632,0.08327674,84877.0,84876.0,0.2019401]
[1744908447839,0.08327674,84877.0,84876.0,0.2812401]
[1744908448833,0.00017674,84877.0,84876.0,0.2812401]
[1744908449133,0.11801544,84877.0,84876.0,0.2812401]
[1744908449735,0.28251544,84877.0,84876.0,0.2812401]
[1744908449931,0.28251544,84877.0,84876.0,0.2813201]
[1744908452638,0.28251544,84877.0,84869.0,0.4197246]
[1744908452639,0.1767761,84869.0,84867.0,0.0589262]
[1744908452831,0.1959512,84868.0,84867.0,0.3367788]
[1744908454939,0.1959512,84868.0,84867.0,0.2189262]
[1744908455142,0.1959512,84868.0,84863.0,0.4145]
[1744908455143,0.1178568,84864.0,84863.0,0.4145]
[1744908455744,0.1178595,84862.0,84861.0,0.1767897]
[1744908456245,0.1962595,84862.0,84861.0,0.3409897]
[1744908456537,0.2148057,84872.0,84871.0,0.117847]
[1744908456739,0.09696,84872.0,84871.0,0.117847]
[1744908456944,0.09696,84872.0,84871.0,0.282047]
[1744908460039,0.1178425,84875.0,84874.0,0.1178429]
[1744908460240,0.17946927,84877.0,84876.0,0.1178401]
[1744908460546,0.17946927,84877.0,84876.0,0.4786401]
[1744908461042,0.17946927,84877.0,84876.0,0.6378401]
[1744908461438,0.00017674,84877.0,84876.0,0.6378401]
[1744908465533,0.07787674,84877.0,84876.0,0.6378401]
[1744908465733,0.07787674,84877.0,84876.0,0.6379201]
[1744908466135,0.07787674,84877.0,84876.0,0.6378401]
[1744908466336,0.19571544,84877.0,84876.0,0.2770401]
[1744908466532,0.07787674,84877.0,84876.0,0.2771201]
[1744908466933,0.19571544,84877.0,84876.0,0.2771201]
[1744908467135,0.07787674,84877.0,84876.0,0.2771201]
[1744908467340,0.19571544,84877.0,84876.0,0.2771201]
[1744908467746,0.19571544,84877.0,84876.0,0.1179201]
[1744908467945,0.27711544,84877.0,84876.0,0.1179201]
[1744908468246,0.27711544,84877.0,84876.0,0.1178401]
[1744908468650,0.27711544,84877.0,84876.0,0.1179201]
[1744908469346,0.15927674,84877.0,84876.0,0.1179201]
[1744908469743,0.15927674,84877.0,84876.0,0.2860201]
[1744908469943,0.27711544,84877.0,84876.0,0.2860201]
[1744908470341,0.27711544,84877.0,84876.0,0.2018201]
[1744908472260,0.27711544,84877.0,84876.0,0.1179201]
[1744908472438,0.63791544,84877.0,84876.0,0.1179201]
[1744908472953,0.15927674,84877.0,84876.0,0.1179201]
[1744908473146,0.15927674,84877.0,84876.0,0.2854201]
[1744908473346,0.27711544,84877.0,84876.0,0.2854201]
[1744908475257,0.07787674,84877.0,84876.0,0.2854201]
[1744908477158,0.19571544,84877.0,84876.0,0.2854201]
[1744908477550,0.07787674,84877.0,84876.0,0.2854201]
[1744908478357,0.07787674,84877.0,84876.0,0.1179201]
[1744908478561,0.19571544,84877.0,84876.0,8e-05]
[1744908478764,0.19571544,84877.0,84874.0,0.1178424]
[1744908478765,0.1178415,84875.0,84874.0,0.1178424]
[1744908478949,0.1767831,84866.0,84864.0,0.3608]
[1744908479257,0.1178609,84861.0,84860.0,0.00017674]
[1744908479453,0.1178609,84861.0,84860.0,0.00044246]
[1744908479454,0.4886609,84861.0,84860.0,0.00044246]
[1744908479656,0.50061283,84861.0,84860.0,0.00017674]
[1744908479959,0.50061283,84861.0,84860.0,0.00025674]
[1744908480162,0.50061283,84861.0,84860.0,0.00017674]
[1744908480760,0.50061283,84861.0,84860.0,0.00025674]
[1744908481458,0.1178734,84852.0,84851.0,0.000108]
[1744908481651,0.1278734,84852.0,84851.0,0.1179828]
[1744908482061,0.0784,84853.0,84852.0,0.1178734]
[1744908482263,0.0784,84853.0,84852.0,0.2015734]
[1744908482457,0.0784,84853.0,84852.0,0.2836734]
[1744908483254,0.196272,84853.0,84852.0,0.1658]
[1744908483454,0.0784,84853.0,84852.0,0.2836734]
[1744908483960,0.0784,84853.0,84852.0,0.2837534]
[1744908484467,0.058927,84866.0,84852.0,0.2837534]
[1744908484468,0.17612546,84897.0,84852.0,0.16588]
[1744908484655,0.1694,84886.0,84885.0,0.1178276]
[1744908484962,0.27292546,84897.0,84885.0,0.1178276]
[1744908485153,0.27292546,84897.0,84896.0,0.1178123]
[1744908485356,0.39073636,84897.0,84896.0,0.1178123]
[1744908485553,0.27292546,84897.0,84896.0,0.1178123]
[1744908485753,0.27292546,84897.0,84895.0,0.0834]
[1744908485956,0.17612546,84897.0,84896.0,0.4786123]
[1744908486256,0.09020516,84897.0,84896.0,0.4786123]
[1744908486452,0.04870866,84897.0,84896.0,0.5611123]
[1744908486657,0.20889218,84900.0,84899.0,0.1178082]
[1744908486853,0.20889218,84900.0,84899.0,0.4786082]
[1744908487753,0.08978509,84904.0,84902.0,0.0589014]
[1744908488060,0.08978509,84904.0,84903.0,0.2828026]
[1744908488866,0.11971345,84911.0,84910.0,0.1177929]
[1744908489067,0.11971345,84911.0,84910.0,0.4785929]
[1744908489765,0.11971345,84911.0,84910.0,0.5622929]
[1744908489967,0.23750495,84911.0,84910.0,0.5622929]
[1744908490167,0.61830495,84911.0,84910.0,8e-05]
[1744908490556,0.117804,84902.0,84901.0,0.1767053]
[1744908490963,0.117804,84902.0,84901.0,0.1767853]
[1744908491173,0.1665,84903.0,84901.0,8e-05]
[1744908491464,0.1178189,84892.0,84882.0,0.3608]
[1744908491658,0.1665,84891.0,84890.0,0.1178207]
[1744908492564,0.0857,84891.0,84890.0,0.4786207]
[1744908492866,0.00017674,84898.0,84897.0,0.1178109]
[1744908493068,0.00017674,84898.0,84897.0,0.4786109]
[1744908495060,0.00017674,84898.0,84897.0,0.1178109]
[1744908495476,0.01017674,84898.0,84897.0,0.1178109]
[1744908495764,0.17427674,84898.0,84897.0,0.1178109]
[1744908495969,0.17427674,84898.0,84897.0,0.1178909]
[1744908498958,0.08417674,84898.0,84897.0,0.1178909]
[1744908499463,0.00017674,84898.0,84897.0,0.1178909]
[1744908499969,0.11798634,84898.0,84897.0,8e-05]
[1744908500172,0.0589074,84895.0,84888.0,0.00017674]
[1744908500469,0.117822,84889.0,84888.0,0.11800014]
[1744908500972,0.0589103,84891.0,84890.0,0.1178207]
[1744908501270,0.0589082,84893.0,84892.0,0.1178179]
[1744908501471,0.2324082,84893.0,84892.0,0.1178179]
[1744908505464,0.1735,84893.0,84892.0,0.1178179]
[1744908505662,0.0842,84893.0,84892.0,0.1178179]
[1744908505972,0.0842,84893.0,84892.0,0.2796179]
[1744908507769,0.00017674,84898.0,84897.0,0.1178109]
[1744908507969,0.08207674,84898.0,84897.0,0.2796109]
[1744908509567,0.08207674,84898.0,84897.0,0.2001109]
[1744908510677,0.08207674,84898.0,84897.0,0.1178109]
[1744908511171,0.17797674,84898.0,84897.0,0.1178109]
[1744908511361,0.29578634,84898.0,84897.0,0.1178109]
[1744908511567,0.08207674,84898.0,84897.0,0.1178109]
[1744908511762,8e-05,84914.0,84913.0,0.1177887]
[1744908512770,0.0782,84915.0,84914.0,0.1177874]
[1744908513166,0.195986,84915.0,84914.0,0.1177874]
[1744908513367,0.07828,84915.0,84914.0,0.1177874]
[1744908513571,0.196066,84915.0,84914.0,0.1177874]
[1744908513967,0.0588957,84912.0,84905.0,0.00017674]
[1744908514169,0.1177985,84906.0,84905.0,0.00017674]
[1744908514370,0.1177985,84906.0,84905.0,0.00028474]
[1744908514573,0.1177985,84906.0,84905.0,0.00017674]
[1744908514774,0.1177985,84906.0,84905.0,0.00025674]
[1744908514974,0.2789985,84906.0,84905.0,0.00017674]
[1744908515169,0.2789985,84906.0,84905.0,0.00025674]
[1744908515971,0.2889985,84906.0,84905.0,0.00025674]
[1744908516173,0.2889985,84906.0,84905.0,0.00017674]
[1744908516379,0.2889985,84906.0,84905.0,0.00025674]
[1744908516777,0.2889985,84906.0,84905.0,1e-08]
[1744908516778,0.5389985,84906.0,84905.0,1e-08]
[1744908517170,0.4212,84906.0,84862.0,0.00898659]
[1744908517369,0.117847,84871.0,84867.0,0.00019683]
[1744908517877,0.117847,84871.0,84870.0,0.17841624]
[1744908518684,0.127847,84871.0,84870.0,0.17833624]
[1744908518883,0.127847,84871.0,84870.0,0.17841624]
[1744908519385,0.288247,84871.0,84870.0,0.17841624]
[1744908519781,0.288247,84871.0,84870.0,0.17833624]
[1744908520081,0.288247,84871.0,84870.0,0.17841624]
[1744908520281,0.79868882,84871.0,84870.0,8e-05]
[1744908520679,0.80758788,84871.0,84870.0,8e-05]
[1744908521182,0.44678788,84871.0,84870.0,8e-05]
[1744908521384,0.80758788,84871.0,84870.0,8e-05]
[1744908522181,0.1178581,84863.0,84862.0,0.00017674]
[1744908522472,0.1178581,84863.0,84850.0,0.0804458]
[1744908522473,0.1178748,84851.0,84850.0,0.0804458]
[1744908522781,0.1178748,84851.0,84850.0,0.0803]
[1744908522982,0.1178748,84851.0,84850.0,0.08038]
[1744908523684,0.1178748,84851.0,84850.0,0.0803]
[1744908523884,0.1178748,84851.0,84850.0,0.08038]
[1744908524377,0.1278748,84851.0,84850.0,0.08038]
[1744908524683,0.1278748,84851.0,84850.0,0.0803]
[1744908524883,0.1278748,84851.0,84850.0,0.08038]
[1744908525675,0.4886748,84851.0,84850.0,0.08038]
[1744908526086,0.4886748,84851.0,84850.0,0.0803]
[1744908528281,0.6525748,84851.0,84850.0,0.0803]
[1744908528479,0.1178859,84843.0,84842.0,0.00017674]
[1744908528682,0.0589481,84836.0,84829.0,0.0001458]
[1744908528883,0.117904,84830.0,84829.0,0.0001458]
[1744908529085,0.127904,84830.0,84829.0,0.0001458]
[1744908529386,0.1179109,84825.0,84824.0,0.079]
[1744908530092,0.4787109,84825.0,84824.0,0.079]
[1744908531690,0.1179123,84824.0,84823.0,0.00506935]
[1744908531992,0.1179207,84818.0,84817.0,0.0854]
[1744908532385,0.1179207,84818.0,84817.0,0.1651]
[1744908532584,0.1179207,84818.0,84817.0,0.16518]
[1744908532790,0.4787207,84818.0,84817.0,0.16518]
[1744908533178,0.4787207,84818.0,84817.0,0.1651]
[1744908533378,0.5570207,84818.0,84817.0,0.16518]
[1744908533584,0.4787207,84818.0,84817.0,0.16518]
[1744908533784,0.1179207,84818.0,84817.0,0.16518]
[1744908534184,0.1179207,84818.0,84817.0,0.1651]
[1744908534379,0.1179207,84818.0,84817.0,0.16518]
[1744908534880,0.4787207,84818.0,84817.0,0.16518]
[1744908535494,0.4887207,84818.0,84817.0,8e-05]
[1744908535688,0.1179221,84817.0,84816.0,0.00017674]
[1744908535890,0.1279221,84817.0,84816.0,0.00017674]
[1744908536090,0.2907221,84817.0,84816.0,0.00017674]
[1744908536493,0.2907221,84817.0,84816.0,0.00025674]
[1744908536794,0.117929,84812.0,84811.0,0.0841]
[1744908537687,0.280729,84812.0,84811.0,0.0841]
[1744908540896,0.280729,84812.0,84811.0,0.08418]
[1744908541400,0.196529,84812.0,84811.0,0.5629104]
[1744908541596,0.117928,84815.0,84814.0,0.1179217]
[1744908541895,0.127928,84815.0,84814.0,0.1179217]
[1744908542292,0.127928,84815.0,84814.0,0.1950217]
[1744908542488,0.127928,84815.0,84814.0,0.2801217]
[1744908542692,0.127928,84815.0,84814.0,0.1622]
[1744908542889,0.206228,84815.0,84814.0,0.1622]
[1744908544004,0.127928,84815.0,84814.0,0.2801262]
[1744908544398,0.127928,84815.0,84814.0,0.1622]
[1744908544606,0.206228,84815.0,84814.0,0.1622]
[1744908545405,0.647528,84815.0,84814.0,0.16228]
[1744908547407,0.647528,84815.0,84814.0,8e-05]
[1744908547608,0.9996,84815.0,84797.0,0.0050709]
[1744908547803,0.1179582,84791.0,84790.0,0.3608]
[1744908547998,0.1179582,84791.0,84790.0,0.4405]
[1744908548306,0.1970535,84796.0,84795.0,0.1179527]
[1744908548802,0.1179541,84794.0,84793.0,0.058977]
[1744908549400,0.09664,84797.0,84793.0,0.058977]
[1744908549401,0.09664,84797.0,84796.0,0.1179513]
[1744908549599,0.2145899,84797.0,84796.0,0.1179513]
[1744908550205,0.11811735,84804.0,84803.0,0.1179415]
[1744908550505,0.1179457,84800.0,84799.0,0.1769194]
[1744908550706,0.1179457,84800.0,84799.0,0.0589735]
[1744908550901,0.0589735,84800.0,84795.0,0.0589763]
[1744908551097,0.0589735,84800.0,84790.0,0.4198593]
[1744908551098,0.0775,84803.0,84790.0,0.36088]
[1744908551302,0.1179582,84791.0,84790.0,0.4788396]
[1744908552211,0.1179582,84791.0,84790.0,0.36088]
[1744908552800,0.1179582,84791.0,84790.0,0.4788396]
[1744908553008,0.1179582,84791.0,84790.0,0.36088]
[1744908553200,0.1179582,84791.0,84790.0,0.4788396]
[1744908553511,0.1179582,84791.0,84790.0,0.36088]
[1744908553810,0.1179582,84791.0,84790.0,0.4788396]
[1744908554513,0.1179582,84791.0,84790.0,0.36088]
[1744908554713,0.1179582,84791.0,84790.0,0.4788396]
[1744908556210,0.1179582,84791.0,84790.0,0.36088]
[1744908556601,0.2006582,84791.0,84790.0,0.36088]
[1744908556806,0.2006582,84791.0,84790.0,0.4787596]
[1744908557011,0.2006582,84791.0,84790.0,0.4788396]
[1744908557912,0.1179582,84791.0,84790.0,0.4788396]
[1744908558110,0.1991514,84796.0,84795.0,0.1179527]
[1744908558310,0.1179514,84796.0,84795.0,0.1179527]
[1744908559504,0.1991514,84796.0,84795.0,0.1179527]
[1744908559712,0.1179541,84794.0,84793.0,0.0589777]
[1744908560211,0.1991541,84794.0,84793.0,0.0589777]
[1744908560805,0.0812,84794.0,84793.0,0.0589777]
[1744908561004,0.1991541,84794.0,84793.0,0.0589777]
[1744908562216,0.1179541,84794.0,84793.0,0.0589777]
[1744908562418,0.1179541,84794.0,84793.0,0.1409777]
[1744908562809,0.0589749,84797.0,84795.0,0.0589763]
[1744908563104,0.0589749,84797.0,84796.0,0.1179513]
[1744908563312,0.0589749,84797.0,84796.0,0.1999513]
[1744908564012,0.1420749,84797.0,84796.0,0.1999513]
[1744908564413,0.1420749,84797.0,84796.0,0.082]
[1744908564920,0.1420749,84797.0,84796.0,0.1999513]
[1744908565710,0.1420749,84797.0,84796.0,0.082]
[1744908566216,0.15490049,84803.0,84796.0,0.082]
[1744908566217,0.0589644,84813.0,84803.0,0.1179415]
[1744908566411,0.117938,84806.0,84803.0,0.1179415]
[1744908566604,0.0836,84811.0,84803.0,0.1956415]
[1744908567010,0.1179324,84810.0,84803.0,0.1956415]
[1744908567511,0.1179339,84809.0,84803.0,0.5564415]
[1744908568017,0.1179249,84815.0,84803.0,0.65101818]
[1744908568218,0.0836,84815.0,84803.0,0.65101818]
[1744908568514,0.1179278,84813.0,84803.0,0.65101818]
[1744908568916,0.1179268,84814.0,84803.0,0.65101818]
[1744908569310,0.0836,84815.0,84803.0,0.65101818]
[1744908569506,0.1179267,84814.0,84803.0,0.65101818]
[1744908569706,0.1179279,84813.0,84803.0,0.65101818]
[1744908569913,0.0589633,84814.0,84803.0,0.65101818]
[1744908570117,0.1179279,84813.0,84803.0,0.6348415]
[1744908570314,0.117931,84811.0,84803.0,0.6348415]
[1744908571222,0.1991319,84810.0,84803.0,0.6348415]
[1744908571421,0.1179334,84809.0,84803.0,0.6348415]
[1744908572316,0.1179377,84806.0,84803.0,0.6348415]
[1744908572617,0.0795,84805.0,84803.0,0.6348415]
[1744908574327,0.11949345,84810.0,84803.0,0.6348415]
[1744908575521,0.14936681,84816.0,84815.0,0.1179248]
[1744908575721,0.11982391,84816.0,84815.0,0.4787248]
[1744908576120,0.081,84834.0,84822.0,0.1179151]
[1744908576320,0.081,84834.0,84822.0,0.4787151]
[1744908576728,0.00017685,84831.0,84822.0,0.4787151]
[1744908576928,0.00017685,84831.0,84822.0,0.6412151]
[1744908577229,0.05056668,84823.0,84822.0,0.6412151]
[1744908577631,0.00017685,84831.0,84830.0,0.117904]
[1744908577826,0.00017685,84831.0,84830.0,0.478704]
[1744908578536,0.00017685,84831.0,84830.0,0.637604]
[1744908587623,0.00017685,84831.0,84830.0,0.478704]
[1744908587830,0.00017685,84831.0,84830.0,0.478784]
[1744908588035,0.23587685,84831.0,84830.0,0.478784]
[1744908588236,0.23587685,84831.0,84830.0,0.478704]
[1744908588439,0.35377945,84831.0,84830.0,0.478784]
[1744908589333,0.35377945,84831.0,84830.0,0.478704]
[1744908589536,0.23587685,84831.0,84830.0,0.478784]
[1744908590040,0.23587685,84831.0,84830.0,0.555184]
[1744908590937,0.23587685,84831.0,84830.0,0.478784]
[1744908595733,0.23587685,84831.0,84830.0,0.637484]
[1744908596349,0.08097685,84831.0,84830.0,0.637484]
[1744908598031,0.077,84843.0,84842.0,0.1178873]
[1744908598230,0.087,84843.0,84842.0,0.1178873]
[1744908598431,0.087,84843.0,84842.0,0.2748873]
[1744908598637,0.087,84843.0,84837.0,0.058947]
[1744908598833,0.1178929,84838.0,84837.0,0.1768376]
[1744908599140,0.0589443,84841.0,84840.0,0.1178901]
[1744908599541,0.1963881,84842.0,84841.0,0.1178887]
[1744908600246,0.0785,84842.0,84841.0,0.1178887]
[1744908600645,0.1963873,84842.0,84841.0,0.1178887]
[1744908600946,0.0785,84842.0,84841.0,0.1178887]
[1744908601447,0.1963873,84842.0,84841.0,0.1178887]
[1744908601844,0.1963873,84842.0,84841.0,0.1980887]
[1744908603242,0.2736873,84842.0,84841.0,0.1980887]
[1744908605346,0.2736873,84842.0,84841.0,0.18703025]
[1744908605847,0.1948868,84843.0,84842.0,0.1178873]
[1744908606055,0.00017685,84846.0,84845.0,0.1178831]
[1744908606257,0.17998653,84846.0,84845.0,0.2729831]
[1744908607248,0.17998653,84846.0,84845.0,0.2729831]
[1744908607941,0.17998653,84846.0,84845.0,0.3526831]
[1744908608944,0.005,84852.0,84851.0,0.1178748]
[1744908609140,0.0589194,84877.0,84870.0,0.1178484]
[1744908609349,0.26781338,84875.0,84872.0,0.1178429]
[1744908609550,0.0589228,84873.0,84872.0,0.176765]
[1744908609768,0.0589228,84873.0,84872.0,0.336365]
[1744908609943,0.29935565,84876.0,84875.0,0.1178415]
[1744908610848,0.00017674,84881.0,84880.0,0.1178345]
[1744908611752,0.00017674,84881.0,84880.0,0.1941345]
[1744908614350,0.00017674,84881.0,84880.0,0.5549345]
[1744908614552,0.0589025,84902.0,84880.0,0.5549345]
[1744908614553,0.00870852,84897.0,84890.0,0.0589098]
[1744908614767,0.00870852,84897.0,84896.0,0.1178123]
[1744908614768,0.4986109,84897.0,84896.0,0.1178123]
[1744908615253,0.4786109,84897.0,84896.0,0.1178123]
[1744908615449,0.4786109,84897.0,84896.0,0.1946123]
[1744908615650,0.1178109,84897.0,84896.0,0.1946123]
[1744908616347,0.1344047,84899.0,84898.0,0.1178096]
[1744908616549,0.01,84899.0,84898.0,0.1178096]
[1744908616750,0.30949749,84900.0,84899.0,0.1178082]
[1744908617551,0.30949749,84900.0,84899.0,0.1946082]
[1744908617852,0.30957749,84900.0,84899.0,0.2728082]
[1744908618051,0.30949749,84900.0,84899.0,0.2728082]
[1744908618254,0.30957749,84900.0,84899.0,0.2728082]
[1744908618563,0.00510801,84904.0,84903.0,0.1178026]
[1744908618760,0.0588889,84921.0,84905.0,0.0588995]
[1744908618950,0.00019684,84914.0,84913.0,0.2944716]
[1744908619151,0.1177872,84915.0,84913.0,0.2944716]
[1744908619152,0.1177872,84915.0,84914.0,0.1177874]
[1744908619352,0.05903771,84917.0,84916.0,0.1177846]
[1744908619560,0.06903771,84917.0,84916.0,0.1177846]
[1744908619759,0.0688919,84917.0,84916.0,0.1177846]
[1744908619955,0.0689719,84917.0,84916.0,0.1177846]
[1744908620164,8e-05,84917.0,84916.0,0.1177846]
[1744908620661,0.0088054,84923.0,84922.0,0.1177763]
[1744908620868,0.04,84923.0,84922.0,0.1177763]
[1744908621161,0.00011623,84925.0,84924.0,0.1177735]
[1744908621347,0.00022424,84925.0,84924.0,0.1177735]
[1744908621756,0.00022424,84925.0,84924.0,0.2760735]
[1744908622062,0.11799634,84925.0,84924.0,0.2760735]
[1744908623551,0.00022424,84925.0,84924.0,0.2760735]
[1744908624056,0.11799634,84925.0,84924.0,0.2760735]
[1744908624256,0.19749634,84925.0,84924.0,0.2760735]
[1744908624758,0.07972424,84925.0,84924.0,0.2760735]
[1744908626252,0.19749634,84925.0,84924.0,0.2760735]
[1744908627063,0.07972424,84925.0,84924.0,0.2760735]
[1744908627252,0.00022424,84925.0,84924.0,0.2760735]
[1744908627652,0.00011623,84925.0,84924.0,0.2760735]
[1744908627858,0.00019623,84925.0,84924.0,0.2760735]
[1744908628967,0.11796833,84925.0,84924.0,0.2760735]
[1744908629464,0.00019623,84925.0,84924.0,0.2760735]
[1744908629965,0.11796833,84925.0,84924.0,0.2760735]
[1744908631054,0.11788833,84925.0,84924.0,0.2760735]
[1744908631563,0.1177776,84921.0,84920.0,0.1177785]
[1744908631753,0.0588923,84918.0,84916.0,0.1766745]
[1744908631959,0.0688923,84918.0,84917.0,0.0792]
[1744908632158,0.4296923,84918.0,84917.0,0.0792]
[1744908632358,0.4296923,84918.0,84899.0,0.09632008]
[1744908632359,0.1177943,84909.0,84899.0,8.008e-05]
[1744908632666,0.1277943,84909.0,84899.0,8.008e-05]
[1744908633066,0.3777943,84909.0,84899.0,8.008e-05]